bitfinex-derivatives/quotes_BNBF0:USTF0_20250523
["timestamp","ask_amount","ask_price","bid_price","bid_amount"]
[1748039233485,0.46176862,663.92,663.39,1.12490735]
[1748039233686,0.30122296,663.96,663.39,1.12490735]
[1748039233882,0.46181173,663.95,663.39,1.12490735]
[1748039234086,0.46181173,663.94,663.4,1.12490735]
[1748039234281,0.46181173,663.93,663.4,1.12490735]
[1748039234480,0.46181173,663.92,663.4,1.12490735]
[1748039234680,0.46181173,663.91,663.4,1.12490735]
[1748039234981,0.30122296,663.96,663.4,1.12490735]
[1748039235181,0.4618524,663.95,663.4,1.12490735]
[1748039235382,0.4618524,663.94,663.4,1.12490735]
[1748039235581,0.46188178,663.93,663.4,1.12490735]
[1748039235781,0.46188178,663.92,663.4,1.12490735]
[1748039236082,0.46188178,663.91,663.4,1.12490735]
[1748039236281,0.30122296,663.96,663.4,1.12490735]
[1748039236482,0.4619096,663.95,663.4,1.12490735]
[1748039236684,0.4619096,663.94,663.4,1.12490735]
[1748039236887,0.4619096,663.93,663.4,1.12490735]
[1748039237087,0.4619096,663.92,663.4,1.12490735]
[1748039237382,0.46192327,663.91,663.4,1.12490735]
[1748039237586,0.30122296,663.96,663.4,1.12490735]
[1748039237785,0.46192425,663.95,663.4,1.12490735]
[1748039238087,1.11581188,663.93,663.44,1.12490735]
[1748039238282,0.46192425,663.92,663.44,1.12490735]
[1748039241191,0.46192425,663.91,663.41,1.12490735]
[1748039241392,0.46192425,663.9,663.41,1.12490735]
[1748039241591,1.11581188,663.95,663.41,1.12490735]
[1748039241787,0.46198233,663.94,663.41,1.12490735]
[1748039241988,0.46198233,663.93,663.41,1.12490735]
[1748039242294,0.46198233,663.92,663.41,1.12490735]
[1748039242493,0.46198233,663.91,663.41,1.12490735]
[1748039242693,0.46203212,663.9,663.41,1.12490735]
[1748039242888,0.46203212,663.89,663.41,1.12490735]
[1748039243088,0.46203212,663.88,663.41,1.12490735]
[1748039243292,0.46203212,663.87,663.41,1.12490735]
[1748039243493,0.46203212,663.86,663.41,1.12490735]
[1748039243688,0.46203212,663.85,663.41,1.12490735]
[1748039243889,1.11581188,663.95,663.41,1.12490735]
[1748039244088,0.46203956,663.94,663.41,1.12490735]
[1748039244293,0.46203956,663.93,663.32,1.12490735]
[1748039244491,0.46206745,663.92,663.32,1.12490735]
[1748039244688,0.46206745,663.91,663.32,1.12490735]
[1748039244889,0.46206745,663.9,663.32,1.12490735]
[1748039245088,0.46206745,663.89,663.32,1.12490735]
[1748039245388,0.46206745,663.88,663.32,1.12490735]
[1748039245589,0.46206745,663.87,663.32,1.12490735]
[1748039245889,0.46206745,663.86,663.32,1.12490735]
[1748039246188,0.46206745,663.85,663.32,1.12490735]
[1748039246388,0.46206745,663.84,663.32,1.12490735]
[1748039246593,0.46206745,663.83,663.32,1.12490735]
[1748039246791,0.46206745,663.82,663.32,1.12490735]
[1748039246995,0.46206745,663.81,663.32,1.12490735]
[1748039247195,0.46206745,663.8,663.32,1.12490735]
[1748039247396,0.46206745,663.79,663.32,1.12490735]
[1748039247596,1.11581188,663.94,663.32,1.12490735]
[1748039247798,1.11581188,663.89,663.26,1.12490735]
[1748039248106,0.4621504,663.88,663.26,1.12490735]
[1748039248294,0.4621504,663.87,663.26,1.12490735]
[1748039248495,0.4621504,663.86,663.26,1.12490735]
[1748039248698,0.4621504,663.85,663.26,1.12490735]
[1748039248899,0.4621504,663.84,663.26,1.12490735]
[1748039249094,0.4621504,663.83,663.26,1.12490735]
[1748039249293,1.11581188,663.89,663.26,1.12490735]
[1748039249294,0.4621504,663.82,663.26,1.12490735]
[1748039249596,0.4621504,663.81,663.26,1.12490735]
[1748039249798,0.4621504,663.8,663.26,1.12490735]
[1748039250093,0.4621504,663.79,663.26,1.12490735]
[1748039250299,0.46216056,663.78,663.26,1.12490735]
[1748039250498,1.11581188,663.89,663.26,1.12490735]
[1748039250699,0.46216056,663.88,663.26,1.12490735]
[1748039250898,0.46216056,663.87,663.26,1.12490735]
[1748039251098,0.46216056,663.86,663.26,1.12490735]
[1748039251400,0.46216056,663.85,663.26,1.12490735]
[1748039251700,0.46216267,663.84,663.26,1.12490735]
[1748039251998,0.46216267,663.83,663.26,1.12490735]
[1748039252298,0.46216267,663.82,663.26,1.12490735]
[1748039252496,0.46216267,663.81,663.26,1.12490735]
[1748039252696,0.46216267,663.8,663.26,1.12490735]
[1748039252895,0.46216267,663.79,663.26,1.12490735]
[1748039253093,0.46216267,663.78,663.26,1.12490735]
[1748039253298,1.11581188,663.88,663.26,1.12490735]
[1748039253500,0.4621456,663.87,663.26,1.12490735]
[1748039253699,0.4621456,663.86,663.26,1.12490735]
[1748039253899,1.11581188,663.84,663.29,1.12490735]
[1748039254098,0.4621456,663.83,663.29,1.12490735]
[1748039254296,0.4621456,663.82,663.29,1.12490735]
[1748039254499,0.4621456,663.81,663.29,1.12490735]
[1748039254696,0.4621456,663.8,663.29,1.12490735]
[1748039254897,0.4621456,663.79,663.29,1.12490735]
[1748039255202,0.46219134,663.78,663.29,1.12490735]
[1748039255402,0.46219134,663.77,663.29,1.12490735]
[1748039255598,0.46219134,663.76,663.29,1.12490735]
[1748039255805,0.46219134,663.75,663.29,1.12490735]
[1748039256103,0.46219134,663.74,663.29,1.12490735]
[1748039256300,0.46219134,663.73,663.29,1.12490735]
[1748039256500,0.46219134,663.72,663.29,1.12490735]
[1748039256704,0.46219134,663.71,663.29,1.12490735]
[1748039256902,1.11581188,663.84,663.29,1.12490735]
[1748039257104,0.4619425,663.83,663.29,1.12490735]
[1748039257304,1.11581188,663.75,663.21,1.12490735]
[1748039257598,0.4619425,663.74,663.21,1.12490735]
[1748039257803,0.4619425,663.73,663.21,1.12490735]
[1748039257999,0.4619425,663.72,663.21,1.12490735]
[1748039258206,1.11581188,663.75,663.21,1.12490735]
[1748039258409,0.46177629,663.74,663.21,1.12490735]
[1748039258706,0.46177629,663.73,663.21,1.12490735]
[1748039258907,0.46176722,663.72,663.21,1.12490735]
[1748039259107,1.11581188,663.75,663.21,1.12490735]
[1748039259308,0.46170128,663.74,663.21,1.12490735]
[1748039259506,0.46170128,663.73,663.21,1.12490735]
[1748039259704,1.11581188,663.75,663.21,1.12490735]
[1748039260006,0.46169027,663.74,663.21,1.12490735]
[1748039260203,0.46169027,663.73,663.21,1.12490735]
[1748039260504,0.46163029,663.72,663.21,1.12490735]
[1748039260802,0.46163029,663.71,663.21,1.12490735]
[1748039261003,1.11581188,663.78,663.14,1.12490735]
[1748039261205,0.46168313,663.77,663.14,1.12490735]
[1748039261404,0.46168313,663.76,663.14,1.12490735]
[1748039261608,0.46168313,663.75,663.14,1.12490735]
[1748039261904,0.46168313,663.74,663.14,1.12490735]
[1748039262106,0.46168313,663.73,663.14,1.12490735]
[1748039262309,1.11581188,663.78,663.14,1.12490735]
[1748039262505,0.46152661,663.77,663.14,1.12490735]
[1748039262705,0.46152661,663.76,663.14,1.12490735]
[1748039262906,0.46152661,663.75,663.14,1.12490735]
[1748039263711,1.11581188,663.74,663.05,1.12490735]
[1748039263913,0.46152661,663.73,663.05,1.12490735]
[1748039264106,0.46152661,663.72,663.05,1.12490735]
[1748039264305,0.46152661,663.71,663.05,1.12490735]
[1748039264510,0.46152661,663.7,663.05,1.12490735]
[1748039264707,0.46152661,663.69,663.05,1.12490735]
[1748039265011,0.46152661,663.68,663.05,1.12490735]
[1748039265310,0.46152661,663.67,663.05,1.12490735]
[1748039265507,0.46143828,663.66,663.05,1.12490735]
[1748039265807,0.46143828,663.65,663.05,1.12490735]
[1748039266007,1.11581188,663.74,663.05,1.12490735]
[1748039266208,0.46143897,663.73,663.05,1.12490735]
[1748039266507,0.46143897,663.72,663.05,1.12490735]
[1748039266710,0.46143897,663.71,663.05,1.12490735]
[1748039266912,0.46143897,663.7,663.05,1.12490735]
[1748039267113,0.46143897,663.69,662.98,1.12490735]
[1748039267312,0.46143897,663.68,662.98,1.12490735]
[1748039267516,0.46143897,663.67,662.98,1.12490735]
[1748039267717,1.11581188,663.74,662.98,1.12490735]
[1748039267913,0.46121641,663.73,662.98,1.12490735]
[1748039268109,0.46121641,663.72,662.98,1.12490735]
[1748039268315,0.46121641,663.71,662.98,1.12490735]
[1748039268512,0.46121641,663.7,662.98,1.12490735]
[1748039268713,0.46121641,663.69,662.98,1.12490735]
[1748039268913,0.461123,663.68,662.98,1.12490735]
[1748039269112,0.461123,663.67,662.98,1.12490735]
[1748039269312,1.11581188,663.74,662.98,1.12490735]
[1748039269513,0.46104014,663.73,662.98,1.12490735]
[1748039269717,0.46104014,663.72,662.98,1.12490735]
[1748039269923,0.46104014,663.71,662.98,1.12490735]
[1748039270117,0.46104014,663.7,662.98,1.12490735]
[1748039270319,0.46104014,663.69,662.98,1.12490735]
[1748039270517,0.46104014,663.68,662.98,1.12490735]
[1748039270813,1.11581188,663.74,662.98,1.12490735]
[1748039271014,1.11581188,663.74,662.82,1.4286041]
[1748039271015,0.46096628,663.73,662.96,1.12490735]
[1748039271216,0.46090538,663.72,662.96,1.12490735]
[1748039271418,0.46089862,663.71,662.96,1.12490735]
[1748039271618,0.46089862,663.7,662.96,1.12490735]
[1748039271818,0.46089862,663.69,662.96,1.12490735]
[1748039272019,1.11581188,663.75,662.96,1.12490735]
[1748039272216,0.46089854,663.74,662.96,1.12490735]
[1748039272419,0.46089854,663.73,662.96,1.12490735]
[1748039272616,0.46089854,663.72,662.96,1.12490735]
[1748039272818,0.46089854,663.71,662.96,1.12490735]
[1748039273020,0.46089854,663.7,662.96,1.12490735]
[1748039273222,1.41713014,663.75,662.96,1.12490735]
[1748039273520,0.46093913,663.74,662.95,1.12490735]
[1748039273720,0.46093913,663.73,662.95,1.12490735]
[1748039273916,0.46093913,663.72,662.95,1.12490735]
[1748039274219,0.46093913,663.71,662.95,1.12490735]
[1748039274420,0.46093913,663.7,662.95,1.12490735]
[1748039274721,0.30131826,663.75,662.95,1.12490735]
[1748039275018,0.46089133,663.74,662.95,1.12490735]
[1748039275219,0.46089133,663.73,662.95,1.12490735]
[1748039275415,0.46089133,663.72,662.95,1.12490735]
[1748039275620,0.46089133,663.71,662.95,1.12490735]
[1748039275822,0.30131826,663.75,662.95,1.12490735]
[1748039276122,0.30131826,663.75,662.79,1.4286041]
[1748039276123,0.46085211,663.74,662.96,1.12490735]
[1748039276322,0.46085211,663.73,662.96,1.12490735]
[1748039276520,0.46085211,663.72,662.96,1.12490735]
[1748039276821,0.46085211,663.71,662.96,1.12490735]
[1748039277122,0.30131826,663.75,662.96,1.12490735]
[1748039277319,0.46079002,663.74,662.96,1.12490735]
[1748039277521,0.46079002,663.73,662.96,1.12490735]
[1748039277723,0.46079002,663.72,662.96,1.12490735]
[1748039277924,0.46079002,663.71,662.96,1.12490735]
[1748039278121,0.30131826,663.75,662.96,1.12490735]
[1748039278326,0.4607603,663.74,662.96,1.12490735]
[1748039278526,0.4607603,663.73,662.96,1.12490735]
[1748039278726,0.4607603,663.72,662.96,1.12490735]
[1748039279027,0.4607603,663.71,662.96,1.12490735]
[1748039279326,0.30131826,663.75,662.95,1.12490735]
[1748039279522,0.46073369,663.74,662.95,1.12490735]
[1748039279721,0.46073369,663.73,662.95,1.12490735]
[1748039279922,0.46073369,663.72,662.95,1.12490735]
[1748039280121,0.30131826,663.75,662.95,1.12490735]
[1748039280321,0.46073421,663.74,662.95,1.12490735]
[1748039280521,0.46073284,663.73,662.95,1.12490735]
[1748039280725,0.46073284,663.72,662.95,1.12490735]
[1748039280927,0.30131826,663.75,662.95,1.12490735]
[1748039281127,0.46073185,663.74,662.95,1.12490735]
[1748039281325,0.46073185,663.73,662.95,1.12490735]
[1748039281526,0.46073185,663.72,662.95,1.12490735]
[1748039281828,0.30131826,663.75,662.95,1.12490735]
[1748039282023,0.46071159,663.74,662.95,1.12490735]
[1748039282228,0.30131826,663.75,662.95,1.12490735]
[1748039282428,0.46071725,663.74,662.97,1.12490735]
[1748039282729,0.30131826,663.75,662.97,1.12490735]
[1748039283024,0.46070821,663.74,662.97,1.12490735]
[1748039283230,0.30131826,663.75,662.97,1.12490735]
[1748039283429,0.46071145,663.74,662.97,1.12490735]
[1748039283631,0.30131826,663.75,662.97,1.12490735]
[1748039283830,0.46071115,663.74,662.97,1.12490735]
[1748039284026,0.30131826,663.75,662.97,1.12490735]
[1748039284229,0.46086531,663.74,662.97,1.12490735]
[1748039284430,0.30131826,663.75,662.97,1.12490735]
[1748039284632,0.46087684,663.74,662.97,1.12490735]
[1748039284831,0.30131826,663.75,662.97,1.12490735]
[1748039285031,0.46087684,663.74,662.97,1.12490735]
[1748039285231,0.30131826,663.75,662.97,1.12490735]
[1748039285432,0.46088749,663.74,662.97,1.12490735]
[1748039285628,0.30131826,663.75,662.97,1.12490735]
[1748039285933,0.46088869,663.74,663.01,1.12490735]
[1748039286134,0.30131826,663.75,663.01,1.12490735]
[1748039286428,0.46090264,663.74,663.01,1.12490735]
[1748039286633,0.30131826,663.75,663.01,1.12490735]
[1748039286833,0.46090575,663.74,663.01,1.12490735]
[1748039287027,0.30131826,663.75,663.01,1.12490735]
[1748039287232,0.46143727,663.74,663.01,1.12490735]
[1748039287432,0.30131826,663.75,663.01,1.12490735]
[1748039287627,0.46144128,663.74,663.01,1.12490735]
[1748039287830,0.30131826,663.75,663.01,1.12490735]
[1748039288029,0.46143816,663.74,663.01,1.12490735]
[1748039288232,0.30131826,663.75,663.01,1.12490735]
[1748039288428,0.46145896,663.74,663.01,1.12490735]
[1748039288632,0.30131826,663.75,663.01,1.12490735]
[1748039288834,0.46146538,663.74,663.01,1.12490735]
[1748039289032,0.30131826,663.75,663.01,1.12490735]
[1748039289235,0.46146487,663.74,663.01,1.12490735]
[1748039289533,0.30131826,663.75,663.01,1.12490735]
[1748039289831,0.46149712,663.74,663.01,1.12490735]
[1748039290032,0.30131826,663.75,663.01,1.12490735]
[1748039292535,0.30131826,663.75,663.03,1.12490735]
[1748039297339,0.4620043,663.74,663.03,1.12490735]
[1748039297538,0.30131826,663.75,663.03,1.12490735]
[1748039298139,0.46206993,663.74,663.03,1.12490735]
[1748039298338,0.46207304,663.73,663.03,1.12490735]
[1748039298535,0.46207304,663.72,663.03,1.12490735]
[1748039298735,0.46207304,663.71,663.04,1.12490735]
[1748039298936,0.46207304,663.7,663.04,1.12490735]
[1748039299135,0.763414,663.7,663.04,1.12490735]
[1748039299443,0.46207304,663.69,663.04,1.12490735]
[1748039299644,0.46219472,663.68,663.04,1.12490735]
[1748039299841,0.46219472,663.67,663.04,1.12490735]
[1748039300040,0.46219472,663.66,663.04,1.12490735]
[1748039300240,0.46219472,663.65,663.04,1.12490735]
[1748039300439,0.46219472,663.64,663.04,1.12490735]
[1748039300644,0.46219472,663.63,663.04,1.12490735]
[1748039300942,0.46219472,663.62,663.04,1.12490735]
[1748039301144,0.46219472,663.61,663.04,1.12490735]
[1748039301345,0.46219472,663.6,663.04,1.12490735]
[1748039301543,0.46219472,663.59,663.04,1.12490735]
[1748039301749,0.46219472,663.58,663.04,1.12490735]
[1748039302045,0.46219472,663.57,663.04,1.12490735]
[1748039302247,0.46219472,663.56,663.04,1.12490735]
[1748039302447,0.30134096,663.7,663.04,1.12490735]
[1748039302641,0.46232764,663.69,663.04,1.12490735]
[1748039302844,0.76367768,663.68,663.04,1.12490735]
[1748039303045,0.46232764,663.67,663.04,1.12490735]
[1748039303247,1.11581188,663.63,662.88,1.12490735]
[1748039303546,0.4623871,663.62,662.88,1.12490735]
[1748039303746,0.4623871,663.61,662.88,1.12490735]
[1748039303943,0.4623871,663.6,662.88,1.12490735]
[1748039304148,0.4623871,663.59,662.88,1.12490735]
[1748039304346,0.4623871,663.58,662.88,1.12490735]
[1748039304546,0.4623871,663.57,662.88,1.12490735]
[1748039304746,1.11581188,663.63,662.88,1.12490735]
[1748039304747,0.4623871,663.56,662.88,1.12490735]
[1748039304946,0.4623871,663.55,662.88,1.12490735]
[1748039305246,0.46245558,663.54,662.88,1.12490735]
[1748039305443,1.11581188,663.63,662.88,1.12490735]
[1748039305648,0.46242464,663.62,662.88,1.12490735]
[1748039305849,0.46242464,663.61,662.88,1.12490735]
[1748039306049,0.46242464,663.6,662.88,1.12490735]
[1748039306249,0.46242464,663.59,662.88,1.12490735]
[1748039306446,0.46242464,663.58,662.88,1.12490735]
[1748039306651,0.46242464,663.57,662.91,1.12490735]
[1748039306848,0.46242464,663.56,662.91,1.12490735]
[1748039307148,0.46242464,663.55,662.91,1.12490735]
[1748039307349,0.46242464,663.54,662.91,1.12490735]
[1748039307649,0.46242464,663.53,662.91,1.12490735]
[1748039307848,0.46242464,663.52,662.91,1.12490735]
[1748039308045,1.11581188,663.59,662.91,1.12490735]
[1748039308247,0.46244236,663.58,662.91,1.12490735]
[1748039308444,0.46244236,663.57,662.91,1.12490735]
[1748039308650,0.46244236,663.56,662.91,1.12490735]
[1748039308854,0.46244236,663.55,662.91,1.12490735]
[1748039309051,0.46244236,663.54,662.91,1.12490735]
[1748039309253,1.57825424,663.53,662.94,1.12490735]
[1748039309453,1.11581188,663.53,662.94,1.12490735]
[1748039309752,0.46246538,663.52,662.94,1.12490735]
[1748039309953,1.11581188,663.53,662.94,1.12490735]
[1748039310152,0.46246956,663.52,662.94,1.12490735]
[1748039310353,1.11581188,663.53,662.94,1.12490735]
[1748039311154,0.46255023,663.52,662.94,1.12490735]
[1748039311355,1.11581188,663.53,662.94,1.12490735]
[1748039311550,0.46252579,663.52,662.94,1.12490735]
[1748039311751,1.11581188,663.53,662.94,1.12490735]
[1748039311954,0.46252579,663.52,662.94,1.12490735]
[1748039312155,1.11581188,663.53,662.94,1.12490735]
[1748039312350,0.4625922,663.52,662.94,1.12490735]
[1748039312553,1.11581188,663.52,662.95,1.12490735]
[1748039313156,0.46263512,663.51,662.95,1.12490735]
[1748039313355,1.11581188,663.52,662.95,1.12490735]
[1748039313557,0.46261086,663.51,662.95,1.12490735]
[1748039313757,1.11581188,663.52,662.95,1.12490735]
[1748039314057,0.46261086,663.51,662.95,1.12490735]
[1748039314260,1.11581188,663.52,662.95,1.12490735]
[1748039314554,0.46268603,663.51,662.95,1.12490735]
[1748039314753,1.11581188,663.52,662.95,1.12490735]
[1748039314954,0.46266622,663.51,662.95,1.12490735]
[1748039315155,1.11581188,663.52,662.95,1.12490735]
[1748039315354,0.46266654,663.51,662.95,1.12490735]
[1748039315560,1.11581188,663.52,662.95,1.12490735]
[1748039315859,0.46267128,663.51,662.95,1.12490735]
[1748039316060,1.11581188,663.52,662.95,1.12490735]
[1748039316260,0.46267545,663.51,662.95,1.12490735]
[1748039316460,1.11581188,663.52,662.95,1.12490735]
[1748039317160,0.46269614,663.51,662.95,1.12490735]
[1748039317361,1.11581188,663.52,662.95,1.12490735]
[1748039317661,0.46268338,663.51,662.95,1.12490735]
[1748039317860,1.11581188,663.52,662.95,1.12490735]
[1748039318055,0.46268942,663.51,662.95,1.12490735]
[1748039318256,0.46268942,663.5,662.95,1.12490735]
[1748039318454,0.46268942,663.49,662.94,1.12490735]
[1748039318660,0.46268942,663.48,662.94,1.12490735]
[1748039318956,0.46268942,663.47,662.94,1.12490735]
[1748039319161,0.46268942,663.46,662.94,1.12490735]
[1748039319356,0.46268942,663.45,662.94,1.12490735]
[1748039319564,0.46268142,663.44,662.94,1.12490735]
[1748039319763,0.46268142,663.43,662.94,1.12490735]
[1748039319964,1.11581188,663.53,662.94,1.12490735]
[1748039320160,0.76410845,663.52,662.94,1.12490735]
[1748039320364,0.76411299,663.51,662.94,1.12490735]
[1748039320565,0.76411754,663.5,662.94,1.12490735]
[1748039320765,0.76412208,663.49,662.94,1.12490735]
[1748039321065,0.46268574,663.48,662.94,1.12490735]
[1748039321265,0.46261687,663.47,662.94,1.12490735]
[1748039321467,0.46261687,663.46,662.94,1.12490735]
[1748039321667,0.46261687,663.45,662.94,1.12490735]
[1748039321869,0.46261687,663.44,662.94,1.12490735]
[1748039322069,0.46261687,663.43,662.81,1.12490735]
[1748039322269,0.46261687,663.42,662.81,1.12490735]
[1748039322470,0.46261687,663.41,662.81,1.12490735]
[1748039322772,0.46261687,663.4,662.81,1.12490735]
[1748039322970,0.46261687,663.39,662.81,1.12490735]
[1748039323170,0.46261687,663.38,662.81,1.12490735]
[1748039323371,0.46261687,663.37,662.81,1.12490735]
[1748039323566,0.46261687,663.36,662.81,1.12490735]
[1748039323770,0.46261687,663.35,662.81,1.12490735]
[1748039324074,0.46261687,663.34,662.81,1.12490735]
[1748039324370,1.11581188,663.44,662.81,1.12490735]
[1748039324666,0.46277651,663.43,662.81,1.12490735]
[1748039324869,0.46277656,663.42,662.81,1.12490735]
[1748039325067,0.46277656,663.41,662.81,1.12490735]
[1748039325268,0.46277656,663.4,662.81,1.12490735]
[1748039325470,1.57858844,663.39,662.66,1.12490735]
[1748039325671,0.46277656,663.38,662.66,1.12490735]
[1748039325872,1.11581188,663.39,662.66,1.12490735]
[1748039326973,0.4626373,663.38,662.66,1.12490735]
[1748039327769,0.4626373,663.37,662.66,1.12490735]
[1748039328075,0.46262336,663.36,662.66,1.12490735]
[1748039328473,0.46262336,663.36,662.63,1.12490735]
[1748039329176,1.11581188,663.42,662.63,1.12490735]
[1748039329476,0.46259282,663.41,662.63,1.12490735]
[1748039329971,1.11581188,663.42,662.63,1.12490735]
[1748039330578,0.46257643,663.41,662.63,1.12490735]
[1748039330777,0.46257768,663.4,662.63,1.12490735]
[1748039330977,0.46257768,663.39,662.63,1.12490735]
[1748039331177,0.46257768,663.38,662.63,1.12490735]
[1748039331376,0.46257768,663.37,662.63,1.12490735]
[1748039331577,0.46257768,663.36,662.63,1.12490735]
[1748039331778,1.11581188,663.42,662.63,1.12490735]
[1748039331978,0.46240099,663.41,662.63,1.12490735]
[1748039332177,0.46240099,663.4,662.63,1.12490735]
[1748039332378,0.46240099,663.39,662.61,1.12490735]
[1748039332676,0.46240099,663.38,662.61,1.12490735]
[1748039332877,0.46240099,663.37,662.61,1.12490735]
[1748039333078,0.30146814,663.42,662.61,1.12490735]
[1748039333279,0.46230072,663.41,662.61,1.12490735]
[1748039333579,0.46230072,663.4,662.61,1.12490735]
[1748039333780,0.46230072,663.39,662.61,1.12490735]
[1748039333978,0.46230072,663.38,662.61,1.12490735]
[1748039334181,0.30146814,663.42,662.61,1.12490735]
[1748039334381,0.46219342,663.41,662.61,1.12490735]
[1748039334578,0.46219342,663.4,662.61,1.12490735]
[1748039334775,0.46219342,663.39,662.61,1.12490735]
[1748039335081,0.30146814,663.42,662.61,1.12490735]
[1748039335281,0.46213116,663.41,662.61,1.12490735]
[1748039335482,0.46213116,663.4,662.61,1.12490735]
[1748039335782,0.46213116,663.39,662.61,1.12490735]
[1748039335982,0.30146814,663.42,662.62,1.12490735]
[1748039336278,0.46206273,663.41,662.62,1.12490735]
[1748039336482,0.46206273,663.4,662.62,1.12490735]
[1748039336782,0.46206273,663.39,662.62,1.12490735]
[1748039336976,0.30146814,663.42,662.62,1.12490735]
[1748039337176,0.46199893,663.41,662.62,1.12490735]
[1748039337477,0.46199893,663.4,662.62,1.12490735]
[1748039337679,0.30146814,663.42,662.62,1.12490735]
[1748039337881,0.46194529,663.41,662.62,1.12490735]
[1748039338084,0.46194529,663.4,662.62,1.12490735]
[1748039338284,0.30146814,663.42,662.62,1.12490735]
[1748039338582,0.46193294,663.41,662.61,1.12490735]
[1748039338783,0.46193294,663.4,662.61,1.12490735]
[1748039339080,0.30146814,663.42,662.61,1.12490735]
[1748039339283,0.46189541,663.41,662.61,1.12490735]
[1748039339485,0.46189541,663.4,662.61,1.12490735]
[1748039339685,0.30146814,663.42,662.61,1.12490735]
[1748039339885,0.46185275,663.41,662.61,1.12490735]
[1748039340085,0.46185275,663.4,662.61,1.12490735]
[1748039340287,0.30146814,663.42,662.61,1.12490735]
[1748039340486,0.4618516,663.41,662.61,1.12490735]
[1748039340687,0.4618516,663.4,662.61,1.12490735]
[1748039340988,0.30146814,663.42,662.61,1.12490735]
[1748039341183,0.4618552,663.41,662.61,1.12490735]
[1748039341384,0.4618552,663.4,662.61,1.12490735]
[1748039341589,0.30146814,663.42,662.61,1.12490735]
[1748039345391,0.30146814,663.42,662.62,1.12490735]
[1748039348490,0.30146814,663.42,662.61,1.12490735]
[1748039351399,0.30146814,663.42,662.67,1.12490735]
[1748039354904,0.4621472,663.41,662.67,1.12490735]
[1748039355203,0.30146814,663.42,662.67,1.12490735]
[1748039355405,0.46215489,663.41,662.67,1.12490735]
[1748039355599,0.46215489,663.4,662.67,1.12490735]
[1748039355805,0.46228449,663.39,662.67,1.12490735]
[1748039356000,0.30146814,663.42,662.67,1.12490735]
[1748039356199,0.46228448,663.41,662.67,1.12490735]
[1748039356503,0.46228448,663.4,662.67,1.12490735]
[1748039356699,0.46228448,663.39,662.67,1.12490735]
[1748039356903,0.46228448,663.38,662.67,1.12490735]
[1748039357104,0.30146814,663.42,662.67,1.12490735]
[1748039357304,0.46241779,663.41,662.67,1.12490735]
[1748039357504,0.46256416,663.4,662.67,1.12490735]
[1748039357705,0.46256416,663.39,662.67,1.12490735]
[1748039357905,0.46256416,663.38,662.67,1.12490735]
[1748039358109,0.46256784,663.37,662.67,1.12490735]
[1748039358408,0.46272102,663.36,662.67,1.12490735]
[1748039358708,0.30146814,663.42,662.67,1.12490735]
[1748039358904,0.46271775,663.41,662.67,1.12490735]
[1748039359108,0.46271775,663.4,662.67,1.12490735]
[1748039359302,0.46272436,663.39,662.67,1.12490735]
[1748039359503,0.46272436,663.38,662.67,1.12490735]
[1748039359707,0.46272436,663.37,662.67,1.12490735]
[1748039359906,0.46272436,663.36,662.67,1.12490735]
[1748039360106,0.46272436,663.35,662.67,1.12490735]
[1748039360406,0.30146814,663.42,662.67,1.12490735]
[1748039360605,0.46279935,663.41,662.67,1.12490735]
[1748039360906,0.46279935,663.4,662.67,1.12490735]
[1748039361106,0.46279935,663.39,662.67,1.12490735]
[1748039361304,0.46280913,663.38,662.67,1.12490735]
[1748039361606,0.30146814,663.42,662.67,1.12490735]
[1748039361607,0.46280913,663.37,662.67,1.12490735]
[1748039361807,0.46280913,663.36,662.67,1.12490735]
[1748039362004,0.46280913,663.35,662.67,1.12490735]
[1748039362209,0.46280913,663.34,662.67,1.12490735]
[1748039362402,0.46280913,663.33,662.67,1.12490735]
[1748039362605,0.46280913,663.32,662.67,1.12490735]
[1748039362805,0.46280913,663.31,662.66,1.12490735]
[1748039363103,1.11581188,663.4,662.66,1.12490735]
[1748039363307,0.46287854,663.39,662.66,1.12490735]
[1748039363510,0.46287854,663.38,662.66,1.12490735]
[1748039363710,0.46287854,663.37,662.66,1.12490735]
[1748039363909,0.46287854,663.36,662.66,1.12490735]
[1748039364106,0.46287854,663.35,662.66,1.12490735]
[1748039364311,0.46287854,663.34,662.66,1.12490735]
[1748039364511,0.46287854,663.33,662.66,1.12490735]
[1748039364712,0.46287854,663.32,662.66,1.12490735]
[1748039364907,0.46287854,663.31,662.66,1.12490735]
[1748039365108,0.46287854,663.3,662.66,1.12490735]
[1748039365407,0.46287854,663.29,662.66,1.12490735]
[1748039365609,0.46287854,663.28,662.66,1.12490735]
[1748039365812,0.46287854,663.27,662.66,1.12490735]
[1748039366014,0.46287854,663.26,662.63,1.12490735]
[1748039366313,0.46287854,663.25,662.63,1.12490735]
[1748039366513,0.46294792,663.24,662.63,1.12490735]
[1748039366715,1.11581188,663.28,662.63,1.12490735]
[1748039366914,0.46294792,663.27,662.63,1.12490735]
[1748039367213,0.46294618,663.26,662.63,1.12490735]
[1748039367414,0.46294618,663.25,662.63,1.12490735]
[1748039367610,0.46294618,663.24,662.63,1.12490735]
[1748039367911,1.11581188,663.28,662.63,1.12490735]
[1748039368115,0.46294498,663.27,662.63,1.12490735]
[1748039368314,0.46294498,663.26,662.63,1.12490735]
[1748039368612,0.46294498,663.25,662.63,1.12490735]